bitfinex/quotes_SOLUSD_20251019
["timestamp","ask_amount","ask_price","bid_price","bid_amount"]
[1760885084171,0.72,191.19,191.14,5.23176729]
[1760885084356,0.72,191.18,191.14,5.92176729]
[1760885084555,0.72,191.18,191.15,0.69]
[1760885084856,0.72,191.18,191.15,5.92134395]
[1760885085059,0.72,191.19,191.16,0.69]
[1760885085265,0.72,191.19,191.15,5.23134395]
[1760885085463,0.72,191.18,191.15,5.92134395]
[1760885086272,0.72,191.19,191.15,5.92134395]
[1760885086666,0.72,191.18,191.15,5.92134395]
[1760885088573,0.2,191.2,191.16,0.69]
[1760885088880,0.2,191.2,191.17,26.8]
[1760885089179,0.2,191.2,191.18,0.69]
[1760885089478,0.2,191.2,191.19,0.69]
[1760885090773,0.2,191.2,191.19,5.92039907]
[1760885091359,0.2,191.21,191.19,5.92039907]
[1760885091594,0.2,191.21,191.2,0.69]
[1760885091887,0.2,191.22,191.2,0.69]
[1760885091888,0.2,191.22,191.21,22.88]
[1760885092065,0.92,191.31,191.21,50.37]
[1760885092265,0.92,191.31,191.22,0.69]
[1760885092773,0.92,191.31,191.23,18.30256758]
[1760885092971,0.92,191.31,191.24,0.69]
[1760885093168,0.72,191.29,191.25,26.8]
[1760885093367,0.72,191.28,191.25,26.8]
[1760885093564,11.07647521,191.3,191.22,5.22956022]
[1760885093864,0.72,191.29,191.23,0.69]
[1760885095179,5.94771604,191.29,191.22,5.22957849]
[1760885095373,10.87647521,191.27,191.23,26.8]
[1760885095771,0.72,191.26,191.23,26.8]
[1760885096769,0.72,191.26,191.23,25.4]
[1760885097166,0.72,191.26,191.23,30.62910756]
[1760885097480,0.72,191.26,191.23,5.22910756]
[1760885097689,10.87647521,191.29,191.24,0.69]
[1760885097878,11.59647521,191.29,191.25,0.69]
[1760885098873,0.72,191.28,191.23,18.99237012]
[1760885099069,0.72,191.28,191.24,0.69]
[1760885099705,10.87647521,191.29,191.19,22.88]
[1760885099706,0.72,191.27,191.19,22.88]
[1760885099869,10.87647521,191.23,191.16,0.69]
[1760885100287,11.59647521,191.23,191.16,0.69]
[1760885100976,10.87647521,191.24,191.17,26.8]
[1760885101299,10.87647521,191.28,191.2,22.88]
[1760885101494,0.92,191.3,191.21,27.49]
[1760885101495,10.87647521,191.29,191.21,27.49]
[1760885101687,10.87647521,191.29,191.22,18.99352472]
[1760885102001,23.8,191.3,191.23,0.69]
[1760885102182,11.07647521,191.3,191.23,0.69]
[1760885102710,11.79647521,191.3,191.23,0.69]
[1760885103870,11.79647521,191.3,191.24,5.22903158]
[1760885104070,11.79647521,191.3,191.25,26.8]
[1760885104573,11.79647521,191.3,191.26,0.69]
[1760885104781,11.79647521,191.3,191.25,26.8]
[1760885104975,11.79647521,191.3,191.25,27.49]
[1760885105492,11.79647521,191.3,191.25,26.8]
[1760885105794,11.79647521,191.3,191.26,5.91831743]
[1760885105992,11.79647521,191.3,191.26,5.22831743]
[1760885106172,11.07647521,191.3,191.26,5.91831743]
[1760885106573,11.79647521,191.3,191.26,5.91831743]
[1760885106891,0.72,191.29,191.26,5.22831743]
[1760885107196,11.07647521,191.3,191.26,5.91831743]
[1760885107389,11.79647521,191.3,191.26,5.91831743]
[1760885107981,0.2,191.3,191.27,0.69]
[1760885108292,0.2,191.3,191.26,18.29952939]
[1760885108598,0.2,191.3,191.27,0.69]
[1760885110497,0.2,191.3,191.28,5.2279381]
[1760885110794,0.2,191.31,191.29,27.47]
[1760885111181,0.2,191.31,191.3,0.7]
[1760885111793,0.9,191.31,191.28,5.2279381]
[1760885111990,0.9,191.31,191.27,11.59647521]
[1760885111991,0.7,191.3,191.27,11.59647521]
[1760885112195,0.7,191.29,191.27,11.59647521]
[1760885112396,0.7,191.28,191.26,26.78]
[1760885113006,16.30364466,191.31,191.26,26.78]
[1760885113194,0.7,191.27,191.26,26.78]
[1760885113395,10.87647521,191.26,191.19,13.07554422]
[1760885113586,0.7,191.25,191.2,32.01012552]
[1760885113781,0.7,191.24,191.2,32.01012552]
[1760885113981,5.2279583,191.28,191.2,5.23012552]
[1760885113982,10.87647521,191.27,191.2,5.23012552]
[1760885114186,0.68,191.23,191.21,26.78]
[1760885114496,0.68,191.25,191.21,26.78]
[1760885114697,0.68,191.27,191.22,0.66]
[1760885115001,0.2,191.31,191.23,0.66]
[1760885115196,23.76,191.31,191.23,0.66]
[1760885115594,23.76,191.31,191.24,18.30161053]
[1760885115793,0.88,191.31,191.25,27.44]
[1760885116096,0.88,191.31,191.25,26.78]
[1760885116296,0.2,191.31,191.26,0.66]
[1760885117282,0.2,191.31,191.28,22.88]
[1760885117581,0.2,191.31,191.3,5.22739153]
[1760885118586,0.2,191.31,191.3,32.00739153]
[1760885119601,0.2,191.31,191.29,5.2276648]
[1760885119905,0.2,191.31,191.3,26.78]
[1760885121209,0.2,191.31,191.3,5.22739153]
[1760885121406,0.2,191.31,191.29,26.78]
[1760885121407,0.88,191.31,191.29,26.78]
[1760885121590,0.68,191.3,191.28,32.00793605]
[1760885122094,0.2,191.31,191.27,26.78]
[1760885122095,0.68,191.29,191.27,26.78]
[1760885122301,0.68,191.28,191.27,26.78]
[1760885123102,0.68,191.28,191.23,5.22930502]
[1760885123309,10.87647521,191.26,191.23,5.22930502]
[1760885123512,0.68,191.25,191.23,5.22930502]
[1760885123701,0.68,191.24,191.22,26.78]
[1760885124028,10.87647521,191.29,191.21,5.22960658]
[1760885124029,0.68,191.23,191.21,5.22960658]
[1760885124319,10.87647521,191.29,191.21,5.22960658]
[1760885124640,0.68,191.25,191.21,5.22960658]
[1760885124826,0.68,191.24,191.21,5.22960658]
[1760885125512,10.87647521,191.26,191.21,5.22960658]
[1760885125697,10.87647521,191.24,191.2,5.23012286]
[1760885125903,41.17778335,191.28,191.16,13.07761754]
[1760885125904,10.87647521,191.22,191.18,5.23048028]
[1760885126106,10.87647521,191.22,191.18,31.99048028]
[1760885126304,0.68,191.21,191.18,31.99048028]
[1760885126513,10.87647521,191.22,191.18,5.23048028]
[1760885126711,11.55647521,191.22,191.18,32.01048028]
[1760885129012,0.68,191.21,191.18,32.01048028]
[1760885129210,0.68,191.21,191.18,26.78]
[1760885130416,0.68,191.21,191.18,32.010649]
[1760885131314,0.68,191.21,191.18,5.230649]
[1760885131513,10.87647521,191.23,191.18,5.230649]
[1760885131719,0.68,191.2,191.18,5.230649]
[1760885132023,0.68,191.2,191.13,13.73975072]
[1760885132024,10.87647521,191.19,191.13,13.73975072]
[1760885132224,23.56,191.2,191.14,26.78]
[1760885132225,0.68,191.18,191.14,26.78]
[1760885132403,0.68,191.17,191.14,32.01175745]
[1760885132603,0.68,191.17,191.11,0.66]
[1760885132604,10.87647521,191.16,191.11,26.78]
[1760885132814,11.55647521,191.19,191.12,0.66]
[1760885134817,16.78690546,191.19,191.13,5.23204101]
[1760885135119,10.87647521,191.17,191.11,5.23236855]
[1760885135624,0.68,191.16,191.11,5.23236855]
[1760885135944,0.68,191.15,191.11,5.23236855]
[1760885136149,10.87647521,191.18,191.11,5.23236855]
[1760885136150,0.68,191.14,191.11,5.23236855]
[1760885136443,0.68,191.13,191.11,5.23236855]
[1760885136940,10.87647521,191.14,191.11,5.23236855]
[1760885137444,0.68,191.13,191.1,26.78]
[1760885137835,0.68,191.12,191.1,32.01286164]
[1760885138015,0.68,191.12,191.1,26.78]
[1760885138634,0.68,191.11,191.09,5.23313591]
[1760885139638,0.68,191.14,191.09,5.89313591]
[1760885139826,0.68,191.13,191.09,5.23313591]
[1760885140013,10.87647521,191.15,191.09,5.23313591]
[1760885140218,0.68,191.13,191.09,5.23313591]
[1760885140536,22.88,191.16,191.07,26.78]
[1760885140537,10.87647521,191.11,191.07,26.78]
[1760885140739,0.68,191.1,191.07,26.78]
[1760885141241,10.87647521,191.11,191.07,27.44]
[1760885141536,10.87647521,191.11,191.08,5.23341009]
[1760885141711,0.68,191.11,191.08,5.23341009]
[1760885143416,0.68,191.1,191.08,5.23341009]
[1760885144632,0.66,191.12,191.08,5.23341009]
[1760885144832,10.87647521,191.11,191.08,5.23341009]
[1760885145033,0.66,191.11,191.07,5.23367244]
[1760885145235,16.10827057,191.14,191.07,5.94367244]
[1760885145424,0.66,191.13,191.07,5.94367244]
[1760885145741,10.87647521,191.11,191.07,5.23367244]
[1760885145932,11.53647521,191.11,191.07,5.23367244]
[1760885146141,10.87647521,191.1,191.06,5.23395791]
[1760885146444,10.87647521,191.1,191.06,5.94395791]
[1760885147442,16.1085364,191.13,191.06,5.23395791]
[1760885147743,0.66,191.1,191.06,5.23395791]
[1760885148039,0.66,191.09,191.06,5.23395791]
[1760885148239,0.66,191.08,191.05,5.23423187]
[1760885150143,16.10937184,191.1,191.04,5.23446605]
[1760885150344,10.87647521,191.06,191.04,5.23446605]
[1760885150725,0.66,191.06,191.04,5.23446605]
[1760885151132,16.10937184,191.1,191.03,32.11477359]
[1760885151133,0.66,191.05,191.03,32.11477359]
[1760885151950,10.87647521,191.06,191.03,32.11477359]
[1760885153246,5.23326269,191.09,191.03,32.11477359]
[1760885153440,0.66,191.06,191.03,32.11477359]
[1760885153837,10.87647521,191.07,191.03,32.82477359]
[1760885154556,22.88,191.11,191.04,0.71]
[1760885154850,10.87647521,191.11,191.04,0.71]
[1760885155056,22.88,191.11,191.04,0.71]
[1760885155358,22.88,191.11,191.05,18.31981156]
[1760885155653,22.88,191.11,191.06,27.49]
[1760885155839,22.88,191.11,191.07,0.71]
[1760885156230,22.88,191.11,191.06,26.78]
[1760885156434,10.87647521,191.12,191.08,0.71]
[1760885156650,10.87647521,191.12,191.06,26.78]
[1760885156863,10.87647521,191.14,191.09,0.71]
[1760885157061,10.87647521,191.14,191.09,27.49]
[1760885157262,11.53647521,191.14,191.09,27.49]
[1760885157561,0.66,191.13,191.09,32.01289518]
[1760885158339,0.66,191.13,191.09,32.72289518]
[1760885158542,0.66,191.13,191.09,32.01289518]
[1760885158838,0.66,191.13,191.09,32.72289518]
[1760885160566,0.66,191.12,191.09,32.01289518]
[1760885161048,11.53647521,191.14,191.09,32.01289518]
[1760885161245,0.66,191.13,191.09,32.72289518]
[1760885161770,0.66,191.13,191.09,32.01289518]
[1760885161949,0.66,191.13,191.09,32.72289518]
[1760885162133,0.66,191.13,191.09,32.01289518]
[1760885162339,0.66,191.12,191.09,32.01289518]
[1760885162849,11.53647521,191.14,191.09,32.01289518]
[1760885163048,0.66,191.13,191.09,32.01289518]
[1760885163548,0.66,191.13,191.09,32.72289518]
[1760885165637,0.66,191.12,191.09,26.78]
[1760885165839,0.66,191.12,191.07,26.78]
[1760885166062,0.66,191.11,191.07,27.49]
[1760885166262,10.87647521,191.09,191.05,0.71]
[1760885166451,10.87647521,191.09,191.05,26.78]
[1760885166758,11.53647521,191.09,191.04,13.79569766]
[1760885166960,0.66,191.09,191.05,5.23423187]
[1760885167145,0.66,191.08,191.04,26.78]
[1760885167462,10.87647521,191.07,191.04,32.01448232]
[1760885167834,5.23324902,191.09,191.04,32.01448232]
[1760885168057,0.66,191.07,191.03,0.1]
[1760885168451,0.66,191.06,191.03,0.1]
[1760885168765,0.66,191.06,191.03,5.33476566]
[1760885169168,5.23324902,191.09,191.03,5.33476566]
[1760885169466,10.87647521,191.07,191.03,5.33476566]
[1760885169675,0.66,191.06,191.03,0.1]
[1760885169964,10.87647521,191.04,191.03,0.1]
[1760885170458,11.53647521,191.04,191.03,0.1]
[1760885171372,10.87647521,191.0,190.94,0.1]
[1760885171541,10.87647521,191.0,190.95,0.66]
[1760885171738,22.88,191.02,190.96,18.32844574]
[1760885171942,22.88,191.02,190.97,0.66]
[1760885172664,10.87647521,191.04,190.97,27.44]
[1760885172861,10.87647521,191.04,190.98,0.66]
[1760885173039,11.55647521,191.04,190.98,0.66]
[1760885173751,11.55647521,191.04,190.98,5.89596918]
[1760885174766,10.87647521,191.04,190.98,5.89596918]
[1760885174959,0.72,191.03,190.98,5.89596918]
[1760885175155,10.87647521,191.04,190.98,5.89596918]
[1760885175369,0.72,191.02,190.98,5.89596918]
[1760885175959,10.87647521,191.01,190.98,5.89596918]
[1760885176575,11.59647521,191.04,190.98,5.23596918]
[1760885176863,11.59647521,191.04,190.99,0.7]
[1760885176864,10.87647521,191.03,190.99,0.7]
[1760885177044,10.87647521,191.03,191.0,0.7]
[1760885177565,10.87647521,191.03,190.99,5.23563727]
[1760885177757,10.87647521,191.03,190.99,5.93563727]
[1760885179365,11.59647521,191.03,190.99,5.93563727]
[1760885180665,0.72,191.07,191.0,0.7]
[1760885180848,10.87647521,191.06,191.0,0.7]
[1760885181750,10.87647521,191.06,191.01,5.23532799]
[1760885181946,5.95315284,191.09,191.02,0.7]
[1760885182266,10.87647521,191.08,191.02,0.7]
[1760885182771,10.87647521,191.09,191.04,22.88]
[1760885182960,11.59647521,191.09,191.05,0.7]
[1760885183271,10.87647521,191.1,191.05,0.7]
[1760885183567,11.59647521,191.1,191.05,0.7]
[1760885183767,0.72,191.09,191.06,5.23395791]
[1760885184473,10.87647521,191.1,191.06,5.23395791]
[1760885184685,3.45557674,191.13,191.07,0.7]
[1760885184972,13.07690011,191.18,191.07,0.7]
[1760885185266,129.88,191.19,191.07,0.7]
[1760885185267,10.87647521,191.15,191.08,26.78]
[1760885185468,0.72,191.15,191.09,0.7]
[1760885186566,0.72,191.15,191.1,5.23286237]
[1760885186874,10.87647521,191.13,191.1,5.23286237]
[1760885187448,10.87647521,191.13,191.1,5.93286237]
[1760885187858,2.73504336,191.17,191.1,5.93286237]
[1760885188058,10.87647521,191.16,191.11,0.7]
[1760885188350,0.72,191.18,191.13,5.23204101]
[1760885188562,10.87647521,191.17,191.13,5.93204101]
[1760885188759,33.75647521,191.17,191.13,5.93204101]
[1760885189755,34.47647521,191.17,191.13,5.93204101]
[1760885190452,0.72,191.16,191.13,5.23204101]
[1760885191359,0.72,191.15,191.11,5.23236353]
[1760885191571,10.87647521,191.13,191.09,5.23291927]
[1760885191778,0.72,191.14,191.0,0.7]
[1760885191779,10.87647521,191.11,191.0,0.7]
[1760885191960,0.72,191.1,191.01,26.76]
[1760885192160,10.87647521,191.08,191.01,27.46]
[1760885192367,11.59647521,191.08,191.01,45.78341912]
[1760885192575,11.59647521,191.08,191.02,0.7]
[1760885194081,11.59647521,191.08,191.01,31.99532799]
[1760885194250,0.72,191.07,191.01,31.99532799]
[1760885194457,10.87647521,191.08,191.02,0.7]
[1760885194680,10.87647521,191.08,191.01,31.99532799]
[1760885194979,0.72,191.07,191.01,31.99532799]
[1760885195356,0.72,191.07,191.01,45.08364797]
[1760885195665,0.72,191.07,191.01,45.78364797]
[1760885196661,10.87647521,191.08,191.01,45.78364797]
[1760885196662,10.87647521,191.05,191.01,5.23532799]
[1760885196860,0.72,191.04,191.01,31.99532799]
[1760885198486,0.72,191.04,191.0,5.23560209]
[1760885199365,10.87647521,191.05,191.0,19.02460732]
[1760885199565,11.59647521,191.05,191.01,0.7]
[1760885200282,5.23258856,191.11,191.0,18.32460732]
[1760885200495,10.87647521,191.09,191.03,5.23477987]
[1760885200786,10.87647521,191.09,191.04,0.7]
[1760885200980,10.87647521,191.09,191.05,0.7]
[1760885201179,11.59647521,191.09,191.05,0.7]
[1760885201561,10.87647521,191.1,191.06,0.7]
[1760885201759,11.59647521,191.1,191.07,5.23368399]
[1760885201960,0.72,191.09,191.07,5.23368399]
[1760885202364,10.87647521,191.11,191.07,5.23368399]
[1760885202782,11.59647521,191.11,191.07,5.93368399]
[1760885202983,10.87647521,191.11,191.07,5.23368399]
[1760885203162,0.72,191.1,191.07,5.23368399]
[1760885203978,10.87647521,191.11,191.07,0.67]
[1760885204193,11.59647521,191.11,191.07,0.67]
[1760885205082,0.72,191.1,191.05,13.75542693]
[1760885205486,10.87647521,191.11,191.05,13.75542693]
[1760885205886,11.59647521,191.11,191.05,0.67]
[1760885206193,0.72,191.1,191.04,5.23450586]
[1760885206492,0.72,191.1,191.04,5.90450586]
[1760885206689,0.72,191.09,191.04,5.90450586]
[1760885206871,0.72,191.08,191.04,5.23450586]
[1760885207069,0.72,191.08,191.04,5.90450586]
[1760885207376,16.10906648,191.11,191.04,5.90450586]
[1760885207584,0.72,191.1,191.04,5.90450586]
[1760885207891,0.72,191.09,191.04,5.90450586]
[1760885208093,0.72,191.08,191.04,5.90450586]
[1760885208280,0.72,191.07,191.04,5.23450586]
[1760885208671,16.10906648,191.11,191.04,5.23450586]
[1760885208869,5.95304876,191.1,191.04,5.23450586]
[1760885209094,10.87647521,191.08,191.04,5.23450586]
[1760885209287,0.72,191.07,191.04,5.23450586]
[1760885210987,10.87647521,191.08,191.04,5.90450586]
[1760885211193,11.59647521,191.08,191.04,5.90450586]
[1760885211694,0.72,191.07,191.04,5.23450586]
[1760885212467,0.72,191.06,191.03,5.23476093]
[1760885212690,0.72,191.05,191.03,5.23476093]
[1760885214391,10.87647521,191.07,191.03,5.23476093]
[1760885214710,5.2329059,191.1,191.03,5.23476093]
[1760885214997,5.2329059,191.1,191.04,0.67]
[1760885214998,11.59647521,191.09,191.04,0.67]
[1760885215194,11.59647521,191.09,191.03,5.23476093]
[1760885215401,0.72,191.08,191.03,5.23476093]
[1760885215604,0.72,191.07,191.03,5.23476093]
[1760885216092,0.72,191.06,191.03,5.23476093]
[1760885216674,0.72,191.08,191.03,5.90476093]
[1760885216875,0.72,191.07,191.03,5.90476093]
[1760885217590,10.87647521,191.1,191.04,0.67]
[1760885218191,11.59647521,191.1,191.04,0.67]
[1760885219190,11.59647521,191.1,191.05,5.23423187]
[1760885219395,0.72,191.09,191.05,5.23423187]
[1760885219805,0.72,191.08,191.05,5.23423187]
[1760885220176,10.87647521,191.1,191.03,18.32172956]
[1760885220381,11.59647521,191.1,191.05,0.67]
[1760885220581,0.72,191.09,191.05,0.67]
[1760885220972,0.72,191.08,191.03,18.99172956]
[1760885221181,10.87647521,191.1,191.04,0.67]
[1760885221497,11.59647521,191.1,191.04,0.67]
[1760885222002,11.59647521,191.1,191.03,18.32172956]
[1760885222177,0.72,191.09,191.03,18.99172956]
[1760885222897,10.87647521,191.1,191.04,0.67]
[1760885223997,0.72,191.11,191.04,0.67]
[1760885223998,0.72,191.09,191.04,0.67]
[1760885224175,0.72,191.08,191.04,0.67]
[1760885224383,0.72,191.08,191.05,5.23423187]
[1760885224584,0.72,191.07,191.03,5.23451294]
[1760885224900,0.72,191.06,191.03,31.97451294]
[1760885226014,10.87647521,191.04,191.01,26.74]
[1760885226185,0.72,191.03,191.0,5.23556457]
[1760885227584,10.87647521,191.04,191.0,5.23556457]
[1760885227793,10.87647521,191.04,191.0,5.90556457]
[1760885227996,0.72,191.03,191.0,5.23556457]
[1760885228502,0.72,191.06,191.01,0.67]
[1760885228687,22.88,191.07,191.01,0.67]
[1760885228889,22.88,191.06,191.01,0.67]
[1760885229601,10.87647521,191.09,191.02,18.32268872]
[1760885229900,10.87647521,191.09,191.03,27.41]
[1760885230101,10.87647521,191.09,191.04,0.67]
[1760885230315,0.72,191.12,191.04,0.67]
[1760885230609,10.87647521,191.11,191.04,0.67]
[1760885231606,11.56647521,191.11,191.05,18.31981156]
[1760885231806,11.56647521,191.11,191.06,0.71]
[1760885232001,10.87647521,191.13,191.07,26.74]
[1760885232203,10.87647521,191.13,191.08,0.71]
[1760885232387,11.56647521,191.13,191.09,0.71]
[1760885232912,11.56647521,191.13,191.08,5.23341009]
[1760885233204,11.56647521,191.13,191.08,5.94341009]
[1760885233406,0.69,191.12,191.08,5.94341009]
[1760885233790,10.87647521,191.16,191.09,0.71]
[1760885234102,11.59647521,191.16,191.09,0.71]
[1760885234787,11.59647521,191.16,191.1,5.23286237]
[1760885234987,11.59647521,191.16,191.1,5.93286237]
[1760885235506,0.72,191.15,191.1,5.93286237]
[1760885235885,10.87647521,191.16,191.1,5.93286237]
[1760885235886,0.72,191.17,191.11,27.44]
[1760885236100,0.72,191.17,191.12,0.7]
[1760885236409,10.87647521,191.18,191.13,0.7]
[1760885236706,10.87647521,191.21,191.14,0.7]
[1760885236900,33.75647521,191.21,191.16,5.23121992]
[1760885237104,0.72,191.21,191.16,18.30926972]
[1760885237304,0.72,191.23,191.17,0.7]
[1760885237795,0.72,191.26,191.17,0.7]
[1760885238108,34.47647521,191.25,191.17,0.7]
[1760885238408,11.59647521,191.25,191.17,0.7]
[1760885239006,11.59647521,191.25,191.18,5.23067266]
[1760885239211,0.72,191.24,191.18,5.23067266]
[1760885239396,10.87647521,191.25,191.18,5.23067266]
[1760885239397,0.72,191.23,191.18,5.23067266]
[1760885239710,0.72,191.22,191.18,5.23067266]
[1760885240004,16.10501259,191.26,191.16,5.23108264]
[1760885240205,0.72,191.24,191.17,27.44]
[1760885240506,0.72,191.24,191.18,0.7]
[1760885240709,11.59647521,191.26,191.18,0.7]
[1760885240886,11.59647521,191.26,191.19,5.23039907]
[1760885241087,11.59647521,191.26,191.19,5.93039907]
[1760885241509,2.7334087,191.29,191.2,0.7]
[1760885241715,11.59647521,191.28,191.2,0.7]
[1760885242697,11.59647521,191.28,191.19,5.23039907]
[1760885242895,5.94826734,191.27,191.2,31.94993427]
[1760885243094,10.87647521,191.25,191.2,26.72]
[1760885243296,0.72,191.24,191.19,5.23012748]
[1760885243503,0.72,191.23,191.19,5.23012748]
[1760885243706,0.72,191.22,191.19,5.23012748]
[1760885244506,5.22822771,191.27,191.19,5.23012748]
[1760885244810,0.72,191.26,191.19,5.93012748]
[1760885245395,0.72,191.26,191.2,0.7]
[1760885246403,0.72,191.26,191.21,5.22985199]
[1760885246608,0.72,191.25,191.21,5.22985199]
[1760885246810,0.72,191.24,191.21,5.22985199]
[1760885247923,0.72,191.23,191.21,5.22985199]
[1760885248108,5.9484092,191.27,191.21,5.22985199]
[1760885248420,0.72,191.26,191.21,5.22985199]
[1760885248620,0.72,191.25,191.21,5.22985199]
[1760885249121,11.59647521,191.28,191.22,0.7]
[1760885249420,10.87647521,191.29,191.22,0.7]
[1760885250019,11.07647521,191.3,191.23,5.22930502]
[1760885250219,23.6,191.29,191.23,19.00256758]
[1760885251822,0.72,191.28,191.22,5.22957849]
[1760885252119,0.72,191.27,191.22,5.22957849]
[1760885252323,0.72,191.26,191.22,31.92957849]
[1760885252519,0.72,191.25,191.22,31.92957849]
[1760885253423,0.72,191.27,191.22,31.92957849]
[1760885253722,0.72,191.26,191.22,31.92957849]
[1760885253923,5.22767293,191.29,191.22,31.92957849]
[1760885254101,10.87647521,191.27,191.22,31.92957849]
[1760885254303,10.87647521,191.25,191.22,31.92957849]
[1760885254518,0.72,191.24,191.22,31.92957849]
[1760885255812,0.72,191.23,191.2,26.7]
[1760885256898,0.72,191.23,191.21,5.22985199]
[1760885258001,16.10469456,191.27,191.21,5.22985199]
[1760885258216,0.72,191.26,191.21,5.22985199]
[1760885258414,10.87647521,191.24,191.21,5.22985199]
[1760885258616,0.72,191.24,191.2,31.93012151]
[1760885259228,0.72,191.24,191.2,32.63012151]
[1760885259428,23.6,191.27,191.21,0.7]
[1760885259742,10.87647521,191.26,191.21,0.7]
[1760885260305,0.72,191.25,191.21,0.7]
[1760885260834,23.6,191.27,191.22,5.92957849]
[1760885261019,22.88,191.27,191.23,0.7]
[1760885261406,0.72,191.26,191.22,18.30352472]
[1760885261625,0.72,191.25,191.22,18.30352472]
[1760885262324,10.87647521,191.26,191.22,18.30352472]
[1760885262518,11.59647521,191.26,191.22,18.30352472]
[1760885263005,0.72,191.25,191.21,5.22985199]
[1760885263200,0.72,191.25,191.21,5.92985199]
[1760885263410,10.87647521,191.26,191.22,0.7]
[1760885263624,11.59647521,191.26,191.22,0.7]
[1760885264828,11.59647521,191.26,191.23,5.22930502]
[1760885265928,22.88,191.27,191.23,5.91930502]
[1760885266435,0.66,191.26,191.23,5.22930502]
[1760885267241,0.66,191.26,191.21,13.76462998]
[1760885267242,22.88,191.27,191.22,5.22957849]
[1760885267439,23.54,191.27,191.23,0.69]
[1760885267728,0.66,191.26,191.22,18.30352472]
[1760885268124,22.88,191.27,191.23,0.69]
[1760885268433,22.88,191.29,191.24,27.39]
[1760885268632,22.88,191.29,191.25,0.69]
[1760885268808,0.66,191.29,191.24,26.7]
[1760885269008,0.66,191.29,191.24,27.39]
[1760885269433,0.66,191.29,191.25,5.22875816]
[1760885270429,0.66,191.29,191.25,5.91875816]
[1760885270626,0.66,191.29,191.25,5.22875816]
[1760885271550,0.66,191.29,191.25,5.91875816]
[1760885271720,11.07647521,191.3,191.26,5.91828229]
[1760885271920,11.73647521,191.3,191.26,5.91828229]
[1760885272123,11.73647521,191.3,191.26,5.22828229]
[1760885272324,0.66,191.29,191.26,5.22828229]
[1760885272628,16.30391649,191.3,191.25,5.228718]
[1760885272827,0.66,191.28,191.25,5.228718]
[1760885273848,0.66,191.27,191.24,31.90903158]
[1760885274050,16.30391649,191.3,191.24,31.90903158]
[1760885274241,0.66,191.27,191.24,31.90903158]
[1760885275732,5.22773108,191.29,191.24,26.68]
[1760885275733,0.66,191.26,191.24,26.68]
[1760885275933,0.66,191.25,191.24,26.68]
[1760885276237,10.87647521,191.26,191.24,26.68]
[1760885276423,11.53647521,191.26,191.24,26.68]
[1760885276627,10.87647521,191.27,191.24,31.90902016]
[1760885277033,10.87647521,191.27,191.24,26.68]
[1760885277329,0.66,191.26,191.24,26.68]
[1760885278452,16.30413209,191.3,191.24,31.90900042]
[1760885278659,0.66,191.27,191.24,31.90900042]
[1760885279357,0.66,191.27,191.24,26.68]
[1760885279940,11.53647521,191.26,191.23,5.22926208]
[1760885281465,10.87647521,191.26,191.23,5.91926208]
[1760885282953,10.87647521,191.27,191.23,5.91926208]
[1760885283263,11.53647521,191.27,191.23,5.91926208]
[1760885286166,10.87647521,191.29,191.24,0.69]
[1760885286360,0.66,191.26,191.23,5.22926208]
[1760885286562,10.87647521,191.29,191.23,5.22926208]
[1760885286763,0.66,191.25,191.23,5.22926208]
[1760885287444,0.66,191.27,191.23,5.22926208]
[1760885287639,0.66,191.27,191.23,5.91926208]
[1760885287867,10.87647521,191.29,191.25,5.22875816]